[Event "*** SCC Grand Prix: Titled Tuesday Blitz"]
[Site "Chess.com"]
[Date "2020.07.07"]
[Round "5"]
[White "MateSchmate"]
[Black "silverback96"]
[Result "0-1"]
[WhiteElo "2400"]
[BlackElo "2251"]
[TimeControl "180+1"]
[EndTime "10:51:11 PDT"]
[Termination "silverback96 won by resignation"]

1. b3 {[%clk 0:03:00.9]} 1... Nf6 {[%clk 0:02:55.3]} 2. Bb2 {[%clk 0:03:01.8]}
2... g6 {[%clk 0:02:56]} 3. e3 {[%clk 0:03:02.7]} 3... Bg7 {[%clk 0:02:51.3]} 4.
Nf3 {[%clk 0:03:03.6]} 4... O-O {[%clk 0:02:43.9]} 5. d4 {[%clk 0:03:04.5]} 5...
d5 {[%clk 0:02:44]} 6. Be2 {[%clk 0:03:05.4]} 6... c5 {[%clk 0:02:44.1]} 7. O-O
{[%clk 0:03:06.3]} 7... Nc6 {[%clk 0:02:44.3]} 8. Nbd2 {[%clk 0:03:06.3]} 8...
cxd4 {[%clk 0:02:44.1]} 9. exd4 {[%clk 0:03:07.2]} 9... Nh5 {[%clk 0:02:42.8]}
10. Ne5 {[%clk 0:03:06.9]} 10... Nf4 {[%clk 0:02:41.5]} 11. Bf3 {[%clk
0:03:05.9]} 11... Qc7 {[%clk 0:02:26.2]} 12. Re1 {[%clk 0:03:04.7]} 12... Bf5
{[%clk 0:02:20.3]} 13. c4 {[%clk 0:03:03.6]} 13... Nxe5 {[%clk 0:02:16.4]} 14.
dxe5 {[%clk 0:03:02.6]} 14... Nd3 {[%clk 0:02:16.3]} 15. Bd4 {[%clk 0:02:57.3]}
15... Nxe1 {[%clk 0:02:15]} 16. Qxe1 {[%clk 0:02:58.2]} 16... dxc4 {[%clk
0:02:14.4]} 17. Nxc4 {[%clk 0:02:59.1]} 17... Rfd8 {[%clk 0:02:13.4]} 18. Rd1
{[%clk 0:02:58.9]} 18... Rac8 {[%clk 0:02:09.8]} 19. g4 {[%clk 0:02:58.8]} 19...
Be6 {[%clk 0:02:01.1]} 20. Bxa7 {[%clk 0:02:56.1]} 20... Rxd1 {[%clk 0:01:59.9]}
21. Qxd1 {[%clk 0:02:57]} 21... Bxc4 {[%clk 0:01:43.7]} 22. bxc4 {[%clk
0:02:57.9]} 22... Qxc4 {[%clk 0:01:43.6]} 23. Bxb7 {[%clk 0:02:56.8]} 23... Qc1
{[%clk 0:01:34.2]} 24. Qxc1 {[%clk 0:02:56.4]} 24... Rxc1+ {[%clk 0:01:35.1]}
25. Kg2 {[%clk 0:02:54.9]} 25... Rc7 {[%clk 0:01:35.5]} 0-1

[Event "*** SCC Grand Prix: Titled Tuesday Blitz"]
[Site "Chess.com"]
[Date "2020.07.07"]
[Round "5"]
[White "Eltaj_Safarli"]
[Black "TamirNabaty"]
[Result "1-0"]
[WhiteElo "2929"]
[BlackElo "2696"]
[TimeControl "180+1"]
[EndTime "10:51:19 PDT"]
[Termination "Eltaj_Safarli won by resignation"]

1. e4 {[%clk 0:03:00.9]} 1... e5 {[%clk 0:02:53.7]} 2. Nf3 {[%clk 0:02:59.7]}
2... Nc6 {[%clk 0:02:54.3]} 3. Nc3 {[%clk 0:03:00.2]} 3... Nf6 {[%clk 0:02:54]}
4. a3 {[%clk 0:03:00.6]} 4... d5 {[%clk 0:02:51]} 5. Bb5 {[%clk 0:02:59.8]} 5...
Nxe4 {[%clk 0:02:50.8]} 6. Qe2 {[%clk 0:02:59.8]} 6... Nxc3 {[%clk 0:02:48.3]}
7. Qxe5+ {[%clk 0:03:00.7]} 7... Be7 {[%clk 0:02:35.5]} 8. dxc3 {[%clk 0:03:00]}
8... O-O {[%clk 0:02:35.1]} 9. Qh5 {[%clk 0:02:59.8]} 9... g6 {[%clk 0:02:25.8]}
10. Qh6 {[%clk 0:02:59.4]} 10... Bf6 {[%clk 0:02:15.6]} 11. O-O {[%clk
0:02:52.1]} 11... Bg7 {[%clk 0:02:15]} 12. Qf4 {[%clk 0:02:50.4]} 12... Ne7
{[%clk 0:02:09.9]} 13. h3 {[%clk 0:02:47.2]} 13... c6 {[%clk 0:02:10.1]} 14. Bd3
{[%clk 0:02:46.7]} 14... h6 {[%clk 0:02:10.4]} 15. Re1 {[%clk 0:02:44.8]} 15...
Be6 {[%clk 0:02:10.4]} 16. Nd4 {[%clk 0:02:38.9]} 16... Bd7 {[%clk 0:02:07.9]}
17. Qh4 {[%clk 0:02:36.9]} 17... g5 {[%clk 0:02:07.1]} 18. Bxg5 {[%clk
0:02:35.1]} 18... f6 {[%clk 0:01:54.1]} 19. Bxh6 {[%clk 0:02:33.9]} 19... Bxh6
{[%clk 0:01:55]} 20. Qxh6 {[%clk 0:02:33]} 20... Rf7 {[%clk 0:01:55.9]} 21. Re3
{[%clk 0:02:30.9]} 21... Qf8 {[%clk 0:01:56.1]} 22. Rg3+ {[%clk 0:02:26.6]}
22... Rg7 {[%clk 0:01:55.1]} 23. Bh7+ {[%clk 0:02:25.4]} 1-0

[Event "*** SCC Grand Prix: Titled Tuesday Blitz"]
[Site "Chess.com"]
[Date "2020.07.07"]
[Round "5"]
[White "rududuyk"]
[Black "Kate1606"]
[Result "1-0"]
[WhiteElo "2094"]
[BlackElo "1419"]
[TimeControl "180+1"]
[EndTime "10:51:24 PDT"]
[Termination "rududuyk won by checkmate"]

1. e4 {[%clk 0:03:00.9]} 1... c5 {[%clk 0:02:59.7]} 2. Nc3 {[%clk 0:02:59.2]}
2... g6 {[%clk 0:02:59.1]} 3. f4 {[%clk 0:02:59.4]} 3... Bg7 {[%clk 0:02:56.5]}
4. Nf3 {[%clk 0:02:59.9]} 4... Nc6 {[%clk 0:02:56]} 5. Bc4 {[%clk 0:03:00.5]}
5... e6 {[%clk 0:02:55.3]} 6. d3 {[%clk 0:03:00.5]} 6... Nge7 {[%clk 0:02:55.1]}
7. O-O {[%clk 0:02:59.9]} 7... O-O {[%clk 0:02:54.6]} 8. Qe1 {[%clk 0:02:58.8]}
8... a6 {[%clk 0:02:47.5]} 9. a4 {[%clk 0:02:58.3]} 9... Rb8 {[%clk 0:02:45.3]}
10. f5 {[%clk 0:02:57.1]} 10... d5 {[%clk 0:02:38.3]} 11. Ba2 {[%clk 0:02:45.2]}
11... d4 {[%clk 0:02:31.3]} 12. Ne2 {[%clk 0:02:40.5]} 12... exf5 {[%clk
0:02:29.8]} 13. Qh4 {[%clk 0:02:39.5]} 13... fxe4 {[%clk 0:02:07.9]} 14. Ng5
{[%clk 0:02:35.9]} 14... h6 {[%clk 0:01:59.8]} 15. Nxf7 {[%clk 0:02:34.5]} 15...
Rxf7 {[%clk 0:01:51.1]} 16. Rxf7 {[%clk 0:02:16.3]} 16... Kh7 {[%clk 0:01:40.4]}
17. Qxh6+ {[%clk 0:02:15]} 17... Kg8 {[%clk 0:01:35.9]} 18. Qxg7# {[%clk
0:02:14.8]} 1-0

[Event "*** SCC Grand Prix: Titled Tuesday Blitz"]
[Site "Chess.com"]
[Date "2020.07.07"]
[Round "5"]
[White "kleopl"]
[Black "GEKKESPONS"]
[Result "1-0"]
[WhiteElo "2414"]
[BlackElo "2539"]
[TimeControl "180+1"]
[EndTime "10:51:40 PDT"]
[Termination "kleopl won by resignation"]

1. c4 {[%clk 0:03:00.9]} 1... e6 {[%clk 0:02:55.1]} 2. Nc3 {[%clk 0:02:59.9]}
2... d5 {[%clk 0:02:56]} 3. d4 {[%clk 0:02:58.9]} 3... Nf6 {[%clk 0:02:53.1]} 4.
cxd5 {[%clk 0:02:57]} 4... Nxd5 {[%clk 0:02:52.9]} 5. e4 {[%clk 0:02:56.8]} 5...
Nxc3 {[%clk 0:02:53]} 6. bxc3 {[%clk 0:02:57.7]} 6... c5 {[%clk 0:02:53.5]} 7.
Nf3 {[%clk 0:02:58]} 7... cxd4 {[%clk 0:02:53.6]} 8. cxd4 {[%clk 0:02:58.9]}
8... Bb4+ {[%clk 0:02:53.6]} 9. Bd2 {[%clk 0:02:59.4]} 9... Bxd2+ {[%clk
0:02:54.1]} 10. Qxd2 {[%clk 0:02:59.5]} 10... O-O {[%clk 0:02:55]} 11. Bc4
{[%clk 0:02:59.3]} 11... Nd7 {[%clk 0:02:53.5]} 12. O-O {[%clk 0:02:58.9]} 12...
b6 {[%clk 0:02:53.7]} 13. d5 {[%clk 0:02:57]} 13... Nc5 {[%clk 0:02:46.4]} 14.
Rfe1 {[%clk 0:02:52.9]} 14... Bb7 {[%clk 0:02:33.1]} 15. Rad1 {[%clk 0:02:51.8]}
15... exd5 {[%clk 0:02:27.1]} 16. Bxd5 {[%clk 0:02:50.2]} 16... Rc8 {[%clk
0:02:14.2]} 17. Ng5 {[%clk 0:02:38.8]} 17... Bxd5 {[%clk 0:02:07.6]} 18. exd5
{[%clk 0:02:39.3]} 18... h6 {[%clk 0:01:52.8]} 19. Ne4 {[%clk 0:02:34]} 19...
Nxe4 {[%clk 0:01:49.1]} 20. Rxe4 {[%clk 0:02:34.9]} 20... Qd6 {[%clk 0:01:48]}
21. Qb4 {[%clk 0:02:25.2]} 21... Rfd8 {[%clk 0:01:44.3]} 22. Re8+ {[%clk
0:02:21.9]} 1-0

[Event "*** SCC Grand Prix: Titled Tuesday Blitz"]
[Site "Chess.com"]
[Date "2020.07.07"]
[Round "5"]
[White "maciek_92"]
[Black "GuerrieroFromLevant"]
[Result "1-0"]
[WhiteElo "2677"]
[BlackElo "2457"]
[TimeControl "180+1"]
[EndTime "10:51:41 PDT"]
[Termination "maciek_92 won by resignation"]

1. c4 {[%clk 0:03:00.9]} 1... e6 {[%clk 0:02:59.3]} 2. g3 {[%clk 0:02:54]} 2...
d5 {[%clk 0:02:59.1]} 3. Bg2 {[%clk 0:02:54.6]} 3... c5 {[%clk 0:02:58.4]} 4.
Nf3 {[%clk 0:02:52]} 4... Nc6 {[%clk 0:02:56.1]} 5. O-O {[%clk 0:02:51.3]} 5...
d4 {[%clk 0:02:54.8]} 6. e3 {[%clk 0:02:45]} 6... Nf6 {[%clk 0:02:54.2]} 7. exd4
{[%clk 0:02:39.6]} 7... cxd4 {[%clk 0:02:55.1]} 8. d3 {[%clk 0:02:35.8]} 8... e5
{[%clk 0:02:52.3]} 9. Re1 {[%clk 0:02:32.7]} 9... Bd6 {[%clk 0:02:51.4]} 10. b4
{[%clk 0:01:59.4]} 10... Bxb4 {[%clk 0:02:50.1]} 11. Nxe5 {[%clk 0:01:59.5]}
11... Bxe1 {[%clk 0:02:48.6]} 12. Nxc6 {[%clk 0:01:59.7]} 12... bxc6 {[%clk
0:02:42.8]} 13. Bxc6+ {[%clk 0:01:59]} 13... Bd7 {[%clk 0:02:29]} 14. Qxe1+
{[%clk 0:01:57.5]} 14... Qe7 {[%clk 0:02:28.3]} 15. Qxe7+ {[%clk 0:01:55.2]}
15... Kxe7 {[%clk 0:02:29.2]} 16. Ba3+ {[%clk 0:01:52.8]} 16... Ke6 {[%clk
0:02:23.6]} 17. Bg2 {[%clk 0:01:39.1]} 17... Rac8 {[%clk 0:02:07.9]} 18. Bh3+
{[%clk 0:01:37]} 1-0

[Event "*** SCC Grand Prix: Titled Tuesday Blitz"]
[Site "Chess.com"]
[Date "2020.07.07"]
[Round "5"]
[White "Klaus1995"]
[Black "tan275"]
[Result "0-1"]
[WhiteElo "1871"]
[BlackElo "2274"]
[TimeControl "180+1"]
[EndTime "10:51:58 PDT"]
[Termination "tan275 won by checkmate"]

1. e4 {[%clk 0:03:00.9]} 1... c6 {[%clk 0:02:58.9]} 2. d4 {[%clk 0:03:01]} 2...
d5 {[%clk 0:02:58.8]} 3. Nc3 {[%clk 0:03:01.4]} 3... dxe4 {[%clk 0:02:58.5]} 4.
Nxe4 {[%clk 0:03:02.3]} 4... Bf5 {[%clk 0:02:58.9]} 5. Ng3 {[%clk 0:03:02.5]}
5... Bg6 {[%clk 0:02:59.5]} 6. h4 {[%clk 0:03:03.3]} 6... h6 {[%clk 0:02:59.1]}
7. h5 {[%clk 0:03:04.2]} 7... Bh7 {[%clk 0:02:58.9]} 8. Nf3 {[%clk 0:03:05.1]}
8... e6 {[%clk 0:02:59.1]} 9. Bd3 {[%clk 0:03:06]} 9... Bxd3 {[%clk 0:02:58.3]}
10. Qxd3 {[%clk 0:03:06.9]} 10... Nf6 {[%clk 0:02:58.8]} 11. Bf4 {[%clk
0:03:07.3]} 11... Bd6 {[%clk 0:02:55.7]} 12. Ne5 {[%clk 0:03:05.8]} 12... Bxe5
{[%clk 0:02:52.9]} 13. Bxe5 {[%clk 0:03:05.6]} 13... Qa5+ {[%clk 0:02:50.2]} 14.
c3 {[%clk 0:03:03]} 14... Nbd7 {[%clk 0:02:50.4]} 15. Ne4 {[%clk 0:02:48.9]}
15... Nxe4 {[%clk 0:02:40.3]} 16. Qxe4 {[%clk 0:02:47.6]} 16... Nxe5 {[%clk
0:02:40]} 17. dxe5 {[%clk 0:02:47.7]} 17... O-O-O {[%clk 0:02:35]} 18. O-O
{[%clk 0:02:38.2]} 18... Rd5 {[%clk 0:02:05.5]} 19. Rfe1 {[%clk 0:02:36.1]}
19... Rhd8 {[%clk 0:02:02.5]} 20. b4 {[%clk 0:02:32.9]} 20... Qa3 {[%clk
0:01:59.7]} 21. c4 {[%clk 0:02:19.6]} 21... Rd2 {[%clk 0:01:52.6]} 22. b5 {[%clk
0:02:15.3]} 22... Qc5 {[%clk 0:01:50]} 23. bxc6 {[%clk 0:02:14.1]} 23... Qxf2+
{[%clk 0:01:48.5]} 24. Kh1 {[%clk 0:02:14.2]} 24... R8d4 {[%clk 0:01:37.5]} 25.
cxb7+ {[%clk 0:02:12.5]} 25... Kb8 {[%clk 0:01:36.5]} 26. Qc6 {[%clk 0:02:11.4]}
26... Rh4# {[%clk 0:01:35.4]} 0-1

[Event "*** SCC Grand Prix: Titled Tuesday Blitz"]
[Site "Chess.com"]
[Date "2020.07.07"]
[Round "5"]
[White "Oneofmyturns"]
[Black "DraG0s3L"]
[Result "1-0"]
[WhiteElo "2717"]
[BlackElo "2507"]
[TimeControl "180+1"]
[EndTime "10:52:10 PDT"]
[Termination "Oneofmyturns won by checkmate"]

1. d4 {[%clk 0:03:00.9]} 1... Nf6 {[%clk 0:02:59.9]} 2. c4 {[%clk 0:02:59.7]}
2... e6 {[%clk 0:02:59.7]} 3. Nc3 {[%clk 0:02:58.5]} 3... Bb4 {[%clk 0:02:59.8]}
4. Qc2 {[%clk 0:02:58.9]} 4... O-O {[%clk 0:02:59.3]} 5. e4 {[%clk 0:02:58.9]}
5... c5 {[%clk 0:02:46.1]} 6. e5 {[%clk 0:02:56.1]} 6... cxd4 {[%clk 0:02:41.6]}
7. a3 {[%clk 0:02:53.7]} 7... Ba5 {[%clk 0:02:26.2]} 8. exf6 {[%clk 0:02:49.3]}
8... dxc3 {[%clk 0:02:23.9]} 9. b4 {[%clk 0:02:49.6]} 9... Bc7 {[%clk
0:02:19.7]} 10. fxg7 {[%clk 0:02:49.6]} 10... Kxg7 {[%clk 0:02:18.9]} 11. Qxc3+
{[%clk 0:02:49.1]} 11... f6 {[%clk 0:02:14.3]} 12. Nf3 {[%clk 0:02:46.4]} 12...
Nc6 {[%clk 0:02:12.3]} 13. Be2 {[%clk 0:02:35.1]} 13... d5 {[%clk 0:02:12.2]}
14. cxd5 {[%clk 0:02:31.6]} 14... exd5 {[%clk 0:02:05.2]} 15. O-O {[%clk
0:02:22.1]} 15... Bf5 {[%clk 0:02:05.2]} 16. Bb2 {[%clk 0:02:18.1]} 16... Be5
{[%clk 0:01:44.3]} 17. Nxe5 {[%clk 0:02:15.4]} 17... fxe5 {[%clk 0:01:44.9]} 18.
b5 {[%clk 0:02:15.1]} 18... Nd4 {[%clk 0:01:44.4]} 19. Qg3+ {[%clk 0:02:14.9]}
19... Kf7 {[%clk 0:01:38.4]} 20. Bh5+ {[%clk 0:02:01]} 20... Bg6 {[%clk
0:01:34]} 21. Qxe5 {[%clk 0:02:01.3]} 21... Nf5 {[%clk 0:01:31.1]} 22. Qxf5+
{[%clk 0:02:00.3]} 22... Kg8 {[%clk 0:01:31.1]} 23. Qe6+ {[%clk 0:01:56.9]}
23... Bf7 {[%clk 0:01:28.6]} 24. Qg4+ {[%clk 0:01:56.4]} 24... Bg6 {[%clk
0:01:27.2]} 25. Bxg6 {[%clk 0:01:56.7]} 25... hxg6 {[%clk 0:01:27.6]} 26. Qxg6#
{[%clk 0:01:57.6]} 1-0

[Event "*** SCC Grand Prix: Titled Tuesday Blitz"]
[Site "Chess.com"]
[Date "2020.07.07"]
[Round "5"]
[White "NiranjanNavalgund"]
[Black "HarryCun"]
[Result "1-0"]
[WhiteElo "2403"]
[BlackElo "2185"]
[TimeControl "180+1"]
[EndTime "10:52:13 PDT"]
[Termination "NiranjanNavalgund won by resignation"]

1. e4 {[%clk 0:03:00.9]} 1... c6 {[%clk 0:02:59.6]} 2. Nc3 {[%clk 0:03:00.9]}
2... d5 {[%clk 0:02:58.2]} 3. Qf3 {[%clk 0:03:01.3]} 3... dxe4 {[%clk 0:02:55]}
4. Nxe4 {[%clk 0:03:02.2]} 4... Nf6 {[%clk 0:02:55.1]} 5. Bc4 {[%clk 0:03:02.7]}
5... e6 {[%clk 0:02:54.1]} 6. d3 {[%clk 0:03:02.5]} 6... Nxe4 {[%clk 0:02:53.3]}
7. dxe4 {[%clk 0:03:02.3]} 7... Nd7 {[%clk 0:02:53.4]} 8. Bf4 {[%clk 0:03:01.8]}
8... Qb6 {[%clk 0:02:45.2]} 9. O-O-O {[%clk 0:03:01.2]} 9... Qa5 {[%clk
0:02:37.2]} 10. Kb1 {[%clk 0:02:57.3]} 10... Nb6 {[%clk 0:02:37.3]} 11. Bc7
{[%clk 0:02:53.4]} 11... Bd7 {[%clk 0:02:24.3]} 12. Qd3 {[%clk 0:02:48.5]} 12...
Rd8 {[%clk 0:02:06.7]} 13. Nf3 {[%clk 0:02:35.5]} 13... Be7 {[%clk 0:01:46.1]}
14. Ne5 {[%clk 0:02:33.5]} 14... O-O {[%clk 0:01:32.9]} 15. Bxd8 {[%clk
0:02:33.1]} 15... Rxd8 {[%clk 0:01:31.9]} 16. Nxd7 {[%clk 0:02:31.7]} 16... Rxd7
{[%clk 0:01:32.1]} 17. Qc3 {[%clk 0:02:31.4]} 17... Bb4 {[%clk 0:01:31.7]} 18.
Rxd7 {[%clk 0:02:29.5]} 18... Nxd7 {[%clk 0:01:31.8]} 19. Qd3 {[%clk 0:02:27.5]}
19... Nc5 {[%clk 0:01:29.3]} 20. Qe3 {[%clk 0:02:22.8]} 20... Bd2 {[%clk
0:01:14.4]} 21. Qe2 {[%clk 0:02:20.6]} 21... Na4 {[%clk 0:01:07.5]} 22. Rd1
{[%clk 0:02:17.9]} 22... Nc3+ {[%clk 0:01:05.4]} 23. bxc3 {[%clk 0:02:17.6]}
23... Qb5+ {[%clk 0:01:05.5]} 24. Bxb5 {[%clk 0:02:17.5]} 1-0

[Event "*** SCC Grand Prix: Titled Tuesday Blitz"]
[Site "Chess.com"]
[Date "2020.07.07"]
[Round "5"]
[White "Bodnar_Mykola"]
[Black "Vision_64"]
[Result "1-0"]
[WhiteElo "2452"]
[BlackElo "2204"]
[TimeControl "180+1"]
[EndTime "10:52:39 PDT"]
[Termination "Bodnar_Mykola won by checkmate"]

1. e4 {[%clk 0:03:00.9]} 1... c5 {[%clk 0:02:33.8]} 2. Nf3 {[%clk 0:03:00.3]}
2... Nc6 {[%clk 0:02:33.7]} 3. d4 {[%clk 0:02:58.9]} 3... cxd4 {[%clk
0:02:34.6]} 4. Nxd4 {[%clk 0:02:59.5]} 4... Nf6 {[%clk 0:02:34.7]} 5. Nc3 {[%clk
0:02:59.6]} 5... e5 {[%clk 0:02:34.6]} 6. Ndb5 {[%clk 0:02:59.8]} 6... d6 {[%clk
0:02:34.2]} 7. Bg5 {[%clk 0:02:59.7]} 7... a6 {[%clk 0:02:34.6]} 8. Na3 {[%clk
0:02:59.1]} 8... b5 {[%clk 0:02:34.8]} 9. Nab1 {[%clk 0:02:59.1]} 9... Be7
{[%clk 0:02:32.4]} 10. Bxf6 {[%clk 0:02:58.4]} 10... Bxf6 {[%clk 0:02:31.8]} 11.
a4 {[%clk 0:02:59.3]} 11... b4 {[%clk 0:02:31.1]} 12. Nd5 {[%clk 0:02:59.4]}
12... O-O {[%clk 0:02:28.5]} 13. Bc4 {[%clk 0:02:59.2]} 13... Be6 {[%clk
0:02:24.2]} 14. O-O {[%clk 0:02:58.2]} 14... Nd4 {[%clk 0:02:22.8]} 15. c3
{[%clk 0:02:56.3]} 15... bxc3 {[%clk 0:02:22.3]} 16. bxc3 {[%clk 0:02:55.2]}
16... Nc6 {[%clk 0:02:16.9]} 17. Nd2 {[%clk 0:02:50.7]} 17... Bg5 {[%clk
0:02:12.5]} 18. Nf3 {[%clk 0:02:49.5]} 18... a5 {[%clk 0:02:05.6]} 19. Rb1
{[%clk 0:02:40.1]} 19... Rb8 {[%clk 0:01:29.4]} 20. Qd3 {[%clk 0:02:20.7]} 20...
h6 {[%clk 0:01:11.7]} 21. Rb5 {[%clk 0:02:10.3]} 21... Na7 {[%clk 0:00:59.4]}
22. Rxb8 {[%clk 0:02:03.7]} 22... Qxb8 {[%clk 0:00:59]} 23. Nxg5 {[%clk
0:02:03.4]} 23... hxg5 {[%clk 0:00:59.9]} 24. Ne7+ {[%clk 0:02:03.4]} 24... Kh7
{[%clk 0:00:56.3]} 25. Bxe6 {[%clk 0:02:04.3]} 25... fxe6 {[%clk 0:00:53.5]} 26.
Qh3# {[%clk 0:02:04]} 1-0

[Event "*** SCC Grand Prix: Titled Tuesday Blitz"]
[Site "Chess.com"]
[Date "2020.07.07"]
[Round "5"]
[White "amintabatabaei"]
[Black "Karateloru"]
[Result "1-0"]
[WhiteElo "2927"]
[BlackElo "2649"]
[TimeControl "180+1"]
[EndTime "10:53:25 PDT"]
[Termination "amintabatabaei won by resignation"]

1. e4 {[%clk 0:03:00.9]} 1... c5 {[%clk 0:02:59.4]} 2. Nf3 {[%clk 0:02:59.4]}
2... e6 {[%clk 0:02:59.5]} 3. d3 {[%clk 0:02:57.8]} 3... Nc6 {[%clk 0:02:58.5]}
4. g3 {[%clk 0:02:57.5]} 4... g6 {[%clk 0:02:56.5]} 5. Bg2 {[%clk 0:02:54.1]}
5... Bg7 {[%clk 0:02:56.1]} 6. O-O {[%clk 0:02:54.6]} 6... Nge7 {[%clk
0:02:56.2]} 7. Re1 {[%clk 0:02:55.2]} 7... d6 {[%clk 0:02:55.5]} 8. c3 {[%clk
0:02:55]} 8... O-O {[%clk 0:02:55.5]} 9. a3 {[%clk 0:02:55.1]} 9... b5 {[%clk
0:02:53.2]} 10. d4 {[%clk 0:02:49.3]} 10... cxd4 {[%clk 0:02:52.9]} 11. cxd4
{[%clk 0:02:50.2]} 11... d5 {[%clk 0:02:53.1]} 12. e5 {[%clk 0:02:49.9]} 12...
b4 {[%clk 0:02:51.4]} 13. h4 {[%clk 0:02:44.6]} 13... a5 {[%clk 0:02:44]} 14. h5
{[%clk 0:02:36.2]} 14... Ba6 {[%clk 0:02:43]} 15. h6 {[%clk 0:02:35.7]} 15...
Bh8 {[%clk 0:02:42.4]} 16. a4 {[%clk 0:02:25.5]} 16... Qb6 {[%clk 0:02:38.5]}
17. b3 {[%clk 0:02:24.1]} 17... Nf5 {[%clk 0:02:38.3]} 18. Be3 {[%clk
0:02:20.4]} 18... f6 {[%clk 0:02:31.7]} 19. Nbd2 {[%clk 0:02:02.8]} 19... fxe5
{[%clk 0:02:28.9]} 20. dxe5 {[%clk 0:02:03.7]} 20... Nxe3 {[%clk 0:02:29]} 21.
Rxe3 {[%clk 0:02:04.3]} 21... Rf5 {[%clk 0:02:21.9]} 22. Bh3 {[%clk 0:02:00.7]}
22... Raf8 {[%clk 0:02:14.5]} 23. Bxf5 {[%clk 0:02:00.5]} 23... Rxf5 {[%clk
0:02:15.4]} 24. Rc1 {[%clk 0:01:58.7]} 24... Nxe5 {[%clk 0:02:14.5]} 25. Nxe5
{[%clk 0:01:53]} 25... Bxe5 {[%clk 0:02:14.4]} 26. Rf3 {[%clk 0:01:34.5]} 26...
Bxg3 {[%clk 0:02:02.1]} 27. Rxf5 {[%clk 0:01:33.9]} 27... gxf5 {[%clk
0:02:01.9]} 28. Qf3 {[%clk 0:01:33.3]} 28... Be5 {[%clk 0:01:56.7]} 29. Qg2+
{[%clk 0:01:33.5]} 29... Kf7 {[%clk 0:01:56.3]} 30. Nf3 {[%clk 0:01:34.1]} 30...
Bf4 {[%clk 0:01:50.9]} 31. Qg7+ {[%clk 0:01:19.8]} 31... Ke8 {[%clk 0:01:51]}
32. Re1 {[%clk 0:01:10.5]} 32... Bc4 {[%clk 0:01:25.2]} 1-0

[Event "*** SCC Grand Prix: Titled Tuesday Blitz"]
[Site "Chess.com"]
[Date "2020.07.07"]
[Round "5"]
[White "czasnaszachy"]
[Black "RaphCamora"]
[Result "0-1"]
[WhiteElo "2242"]
[BlackElo "2452"]
[TimeControl "180+1"]
[EndTime "10:53:40 PDT"]
[Termination "RaphCamora won by resignation"]

1. d4 {[%clk 0:03:00.9]} 1... d5 {[%clk 0:02:59.7]} 2. c4 {[%clk 0:02:59.9]}
2... e6 {[%clk 0:02:59.7]} 3. Nc3 {[%clk 0:02:59.5]} 3... c6 {[%clk 0:02:59.7]}
4. e3 {[%clk 0:02:58.5]} 4... Nf6 {[%clk 0:02:59.2]} 5. Nf3 {[%clk 0:02:56.5]}
5... Nbd7 {[%clk 0:02:59.1]} 6. b3 {[%clk 0:02:51.5]} 6... Bb4 {[%clk
0:02:56.6]} 7. Bd2 {[%clk 0:02:51.2]} 7... O-O {[%clk 0:02:54.6]} 8. Bd3 {[%clk
0:02:51.1]} 8... Qe7 {[%clk 0:02:49.7]} 9. O-O {[%clk 0:02:50.7]} 9... e5 {[%clk
0:02:41.4]} 10. dxe5 {[%clk 0:02:43.5]} 10... Nxe5 {[%clk 0:02:33.2]} 11. Nxe5
{[%clk 0:02:42.5]} 11... Qxe5 {[%clk 0:02:32.3]} 12. Ne2 {[%clk 0:02:34.5]}
12... Bxd2 {[%clk 0:02:26.7]} 13. Qxd2 {[%clk 0:02:34.4]} 13... Rd8 {[%clk
0:02:23.1]} 14. cxd5 {[%clk 0:02:26.2]} 14... Rxd5 {[%clk 0:02:12.5]} 15. Qc2
{[%clk 0:02:15.4]} 15... Bg4 {[%clk 0:02:10.4]} 16. Ng3 {[%clk 0:02:15.3]} 16...
Rad8 {[%clk 0:02:08.5]} 17. Bc4 {[%clk 0:01:57.9]} 17... Rd2 {[%clk 0:01:55]}
18. Qc1 {[%clk 0:01:57.5]} 18... h5 {[%clk 0:01:36.5]} 19. h3 {[%clk 0:01:52.2]}
19... h4 {[%clk 0:01:35.3]} 20. Nh1 {[%clk 0:01:27]} 20... Bh5 {[%clk
0:01:10.3]} 21. b4 {[%clk 0:01:19]} 21... Rd1 {[%clk 0:00:46.1]} 22. Qc2 {[%clk
0:01:13.7]} 22... Rxa1 {[%clk 0:00:40.7]} 23. Rxa1 {[%clk 0:01:12.6]} 23...
Qxa1+ {[%clk 0:00:40.2]} 24. Bf1 {[%clk 0:01:13.1]} 0-1

[Event "*** SCC Grand Prix: Titled Tuesday Blitz"]
[Site "Chess.com"]
[Date "2020.07.07"]
[Round "5"]
[White "XDPS"]
[Black "Infernal_XaM"]
[Result "0-1"]
[WhiteElo "2718"]
[BlackElo "2941"]
[TimeControl "180+1"]
[EndTime "10:53:44 PDT"]
[Termination "Infernal_XaM won on time"]

1. e4 {[%clk 0:02:52.3]} 1... e5 {[%clk 0:02:59.7]} 2. Nf3 {[%clk 0:02:51.7]}
2... Nc6 {[%clk 0:03:00.3]} 3. Bb5 {[%clk 0:02:51]} 3... f5 {[%clk 0:02:58]} 4.
d3 {[%clk 0:02:45.5]} 4... fxe4 {[%clk 0:02:56.5]} 5. dxe4 {[%clk 0:02:46.4]}
5... Nf6 {[%clk 0:02:56.9]} 6. Be3 {[%clk 0:02:46.2]} 6... d6 {[%clk 0:02:53.6]}
7. Nc3 {[%clk 0:02:42.9]} 7... Be7 {[%clk 0:02:51.4]} 8. Qd3 {[%clk 0:02:42.9]}
8... O-O {[%clk 0:02:49.6]} 9. h3 {[%clk 0:02:27.7]} 9... Kh8 {[%clk 0:02:48.6]}
10. Bc4 {[%clk 0:02:23]} 10... Qe8 {[%clk 0:02:42.8]} 11. O-O-O {[%clk
0:02:15.2]} 11... a6 {[%clk 0:02:38.6]} 12. Kb1 {[%clk 0:01:53.5]} 12... b5
{[%clk 0:02:37.4]} 13. Bd5 {[%clk 0:01:53.6]} 13... Nb4 {[%clk 0:02:35.1]} 14.
Qd2 {[%clk 0:01:50.5]} 14... c6 {[%clk 0:02:32.6]} 15. Bb3 {[%clk 0:01:49.2]}
15... a5 {[%clk 0:02:33]} 16. a4 {[%clk 0:01:37.2]} 16... bxa4 {[%clk
0:02:31.9]} 17. Bxa4 {[%clk 0:01:35.5]} 17... Rb8 {[%clk 0:02:31.9]} 18. Bb3
{[%clk 0:01:25.5]} 18... a4 {[%clk 0:02:24.5]} 19. Nxa4 {[%clk 0:01:24]} 19...
Be6 {[%clk 0:02:25.1]} 20. Bxe6 {[%clk 0:01:18.4]} 20... Nxe4 {[%clk 0:02:24.5]}
21. Qe1 {[%clk 0:01:13.5]} 21... d5 {[%clk 0:02:24.4]} 22. c3 {[%clk 0:00:44.8]}
22... Qg6 {[%clk 0:02:21.6]} 23. cxb4 {[%clk 0:00:24.9]} 23... Bxb4 {[%clk
0:02:14.7]} 24. Nh4 {[%clk 0:00:19.3]} 24... Nc3+ {[%clk 0:01:51]} 25. Ka1
{[%clk 0:00:19]} 25... Qc2 {[%clk 0:01:51.4]} 0-1